fUSD/lending_fUSD_20240819
["ID","MTS","AMOUNT","RATE_DAILY","PERIOD"]
[335246824,1724029846222,-292.978315,0.00011,2]
[335246825,1724029846285,-1417.28637718,0.00011,2]
[335246826,1724029846297,-8349.39972059,0.00011,2]
[335246827,1724029846308,-1753.85498398,0.00011,2]
[335246828,1724029846319,-1034.05360558,0.00011,2]
[335246829,1724029846330,-939.883994,0.00011,2]
[335246830,1724029846342,-1185.57,0.00011,2]
[335246831,1724029846353,-6772.36392534,0.00011,2]
[335246832,1724029846381,-585.71,0.00010999,2]
[335246833,1724029846392,-19.29,0.00010999,2]
[335246834,1724029846401,-1128.66515783,0.00011,2]
[335246835,1724029847395,-729.12371714,0.00011,2]
[335246836,1724029847406,-4919.07120143,0.00011,2]
[335246838,1724029947110,356.08,8.355e-05,2]
[335246839,1724029951370,151.18357279,9.857e-05,2]
[335246840,1724030240501,500.0,9.644e-05,2]
[335246846,1724030362089,1775.33,9.872e-05,2]
[335246849,1724030477445,23900.0,9.838e-05,2]
[335246851,1724030524773,532.6,9.897e-05,2]
[335246852,1724030612426,348.11,8.219e-05,2]
[335246853,1724030751780,250.0,9.849e-05,2]
[335246854,1724030760397,218.02,9.854e-05,2]
[335246855,1724030770124,438.97,9.886e-05,2]
[335246861,1724030937785,23900.0,9.849e-05,2]
[335246862,1724030959004,1000.0,9.798e-05,2]
[335246865,1724030961894,-155.0,9.91e-05,2]
[335246867,1724030961923,-3075.7734375,9.916e-05,2]
[335246869,1724030961951,-578.42870894,9.921e-05,2]
[335246871,1724030961992,-2497.34472855,9.921e-05,2]
[335246873,1724030962021,-923.41371987,9.925e-05,2]
[335246874,1724030969977,155.0,9.899e-05,2]
[335246875,1724030986957,-2152.35971762,9.925e-05,2]
[335246876,1724030986986,-169.2,9.925e-05,2]
[335246877,1724030987017,-175.23,9.936e-05,2]
[335246878,1724030987046,-1457.01164071,9.943e-05,2]
[335246879,1724030987084,-3953.80135833,9.943e-05,2]
[335246880,1724030987121,-1965.99589255,9.943e-05,2]
[335246881,1724031015300,236.09,0.000139,31]
[335246883,1724031032416,-150.0,9.943e-05,2]
[335246884,1724031032425,-300.0,9.999e-05,2]
[335246885,1724031032434,-155.0,9.999e-05,2]
[335246886,1724031032443,-299.08234998,0.0001,2]
[335246887,1724031032454,-250.91765002,0.0001,2]
[335246888,1724031032463,-58.88464325,0.0001,2]
[335246889,1724031032474,-2053.79311231,0.0001,2]
[335246890,1724031032483,-1389.78332869,0.0001,2]
[335246891,1724031032492,-3877.48994874,0.0001,2]
[335246892,1724031032503,-962.88244665,0.00010026,2]
[335246893,1724031032513,-150.99,0.00010068,2]
[335246894,1724031032524,-3145.53,0.00010164,2]
[335246895,1724031032537,-860.49,0.00010164,2]
[335246896,1724031032546,-500.0,0.00010164,2]
[335246897,1724031032556,-348.11,0.00010469,2]
[335246898,1724031032565,-155.48469768,0.00010471,2]
[335246899,1724031032574,-1337.557901,0.000105,2]
[335246900,1724031032583,-953.21363948,0.00010551,2]
[335246901,1724031032593,-953.21363947,0.00010551,2]
[335246902,1724031032602,-2501.75754639,0.00010566,2]
[335246903,1724031032611,-3777.13854064,0.00010566,2]
[335246904,1724031032620,-190.80009,0.00010567,2]
[335246905,1724031032630,-1141.01362291,0.00010699,2]
[335246906,1724031032639,-1739.57017204,0.00010713,2]
[335246907,1724031032648,-150.0,0.00010747,2]
[335246908,1724031032657,-1771.4995,0.00010748,2]
[335246909,1724031032667,-18615.51516247,0.00010835,2]
[335246910,1724031032676,-526.71491504,0.00010852,2]
[335246911,1724031032686,-649.86351287,0.00010861,2]
[335246912,1724031032695,-629.05909233,0.00010861,2]
[335246913,1724031032704,-1161.9358211,0.00010861,2]
[335246914,1724031032714,-255.19609183,0.00010862,2]
[335246915,1724031032723,-485.18668102,0.00010862,2]
[335246916,1724031032734,-155.14233446,0.00010862,2]
[335246917,1724031032744,-6308.91919206,0.0001088,2]
[335246918,1724031032753,-197.1386879,0.00010888,2]
[335246919,1724031032764,-159.86479756,0.00010888,2]
[335246920,1724031032774,-1088.57212,0.0001089,2]
[335246921,1724031032785,-1069.27842,0.0001089,2]
[335246923,1724031032794,-164.37927092,0.0001089,2]
[335246925,1724031032803,-236.34424982,0.0001089,2]
[335246926,1724031032812,-155.0,0.0001089,2]
[335246927,1724031032823,-2426.0891,0.00010899,2]
[335246928,1724031032833,-5003.31744096,0.00010899,2]
[335246929,1724031032843,-5003.31744092,0.00010899,2]
[335246930,1724031032853,-5003.31744092,0.00010899,2]
[335246931,1724031032864,-5003.31744092,0.00010899,2]
[335246932,1724031032873,-5003.31744092,0.00010899,2]
[335246933,1724031032883,-5003.31744092,0.00010899,2]
[335246934,1724031032894,-5003.31744092,0.00010899,2]
[335246935,1724031032903,-5003.31744092,0.00010899,2]
[335246936,1724031032912,-155.0,0.00010899,2]
[335246937,1724031032925,-155.22726663,0.00010899,2]
[335246938,1724031032936,-5003.31744092,0.00010899,2]
[335246939,1724031032946,-2936.061,0.00010899,2]
[335246940,1724031032955,-2635.2288,0.000109,2]
[335246941,1724031032964,-6147.2411,0.000109,2]
[335246942,1724031032973,-906.0,0.000109,2]
[335246943,1724031032982,-539.0,0.000109,2]
[335246944,1724031032992,-5003.31744092,0.000109,2]
[335246945,1724031033001,-573.77043662,0.000109,2]
[335246946,1724031033010,-573.77043659,0.000109,2]
[335246947,1724031033019,-573.77043659,0.000109,2]
[335246948,1724031033029,-573.77043659,0.000109,2]
[335246949,1724031033039,-573.77043659,0.000109,2]
[335246950,1724031033048,-573.77043659,0.000109,2]
[335246951,1724031033058,-2228.82,0.000109,2]
[335246952,1724031033067,-573.77043659,0.000109,2]
[335246953,1724031033076,-573.77043659,0.000109,2]
[335246954,1724031033085,-202.36856443,0.000109,2]
[335246955,1724031033095,-1000.0,0.000109,2]
[335246956,1724031033104,-264.49036255,0.00010949,2]
[335246957,1724031033114,-212.814,0.00010959,2]
[335246958,1724031033124,-150.0,0.00010959,2]
[335246959,1724031033134,-2837.95,0.00010959,2]
[335246960,1724031033143,-250.0,0.00010959,2]
[335246961,1724031033153,-260.38691325,0.00010979,2]
[335246962,1724031033163,-1283.16292501,0.0001098,2]
[335246963,1724031033173,-15488.5749477,0.00010989,2]
[335246964,1724031033183,-2213.10398569,0.00010989,2]
[335246965,1724031033195,-46048.41114733,0.0001099,3]
[335246966,1724031033205,-7630.0645297,0.00010997,2]
[335246967,1724031033215,-8166.5239615,0.00010997,2]
[335246968,1724031033224,-500.0,0.00010998,2]
[335246969,1724031033234,-500.0,0.00010998,2]
[335246970,1724031033244,-500.0,0.00010998,2]
[335246971,1724031033254,-500.0,0.00010998,2]
[335246972,1724031033263,-480.70609493,0.00010998,2]
[335246973,1724031033274,-500.0,0.00010998,2]
[335246974,1724031033285,-719.33,0.00010998,2]
[335246975,1724031033295,-1151.3,0.00010998,2]
[335246976,1724031033305,-800.28,0.00010998,2]
[335246977,1724031033314,-500.0,0.00010998,2]
[335246978,1724031033323,-500.0,0.00010998,2]
[335246979,1724031033333,-500.0,0.00010998,2]
[335246980,1724031033343,-500.0,0.00010998,2]
[335246981,1724031033352,-500.0,0.00010998,2]
[335246982,1724031033362,-500.0,0.00010998,2]
[335246983,1724031033372,-341.83071721,0.00010998,2]
[335246984,1724031033381,-319.44028821,0.00010998,2]
[335246985,1724031033390,-162.81877593,0.00010998,2]
[335246986,1724031033399,-188.5114047,0.00010998,2]
[335246987,1724031033409,-511.56150352,0.00010999,2]
[335246988,1724031033418,-500.0,0.00010999,2]
[335246989,1724031033427,-500.0,0.00010999,2]
[335246990,1724031033436,-500.0,0.00010999,2]
[335246991,1724031033446,-500.0,0.00010999,2]
[335246992,1724031033455,-500.0,0.00010999,2]
[335246993,1724031033464,-500.0,0.00010999,2]
[335246994,1724031033474,-500.0,0.00010999,2]
[335246995,1724031033483,-500.0,0.00010999,2]
[335246996,1724031033493,-500.0,0.00010999,2]
[335246997,1724031033503,-500.0,0.00010999,2]
[335246998,1724031033512,-500.0,0.00010999,2]
[335246999,1724031033521,-500.0,0.00010999,2]
[335247000,1724031033531,-500.0,0.00010999,2]
[335247001,1724031033541,-500.0,0.00010999,2]
[335247002,1724031033550,-500.0,0.00010999,2]
[335247003,1724031033560,-500.0,0.00010999,2]
[335247004,1724031033569,-500.0,0.00010999,2]
[335247005,1724031033579,-500.0,0.00010999,2]
[335247006,1724031033589,-615.82,0.00010999,2]
[335247007,1724031033598,-719.33,0.00010999,2]
[335247008,1724031033607,-719.33,0.00010999,2]
[335247009,1724031033616,-719.33,0.00010999,2]
[335247010,1724031033626,-719.33,0.00010999,2]
[335247011,1724031033635,-719.33,0.00010999,2]
[335247012,1724031033644,-719.33,0.00010999,2]
[335247013,1724031033653,-719.33,0.00010999,2]
[335247014,1724031033663,-719.33,0.00010999,2]
[335247015,1724031033673,-1151.3,0.00010999,2]
[335247016,1724031033682,-719.33,0.00010999,2]
[335247017,1724031033691,-719.33,0.00010999,2]
[335247018,1724031033701,-1151.3,0.00010999,2]
[335247019,1724031033710,-1151.3,0.00010999,2]
[335247020,1724031033719,-719.33,0.00010999,2]
[335247021,1724031033728,-719.33,0.00010999,2]
[335247022,1724031033737,-1151.3,0.00010999,2]
[335247023,1724031033747,-719.33,0.00010999,2]
[335247024,1724031033756,-1151.3,0.00010999,2]
[335247025,1724031033765,-719.33,0.00010999,2]
[335247026,1724031033774,-1151.3,0.00010999,2]
[335247027,1724031033785,-719.33,0.00010999,2]
[335247028,1724031033794,-1151.3,0.00010999,2]
[335247029,1724031033803,-719.33,0.00010999,2]
[335247030,1724031033812,-719.33,0.00010999,2]
[335247031,1724031033821,-1151.3,0.00010999,2]
[335247032,1724031033831,-719.33,0.00010999,2]
[335247033,1724031033840,-1151.3,0.00010999,2]
[335247034,1724031033849,-719.33,0.00010999,2]
[335247035,1724031033858,-1151.3,0.00010999,2]
[335247036,1724031033868,-1151.3,0.00010999,2]
[335247037,1724031033877,-719.33,0.00010999,2]
[335247038,1724031033887,-142.83272111,0.00010999,2]
[335247058,1724031038749,-155.14275304,0.00010862,2]
[335247059,1724031038758,-271.09182941,0.00010862,2]
[335247060,1724031038768,-420.02442891,0.00010888,2]
[335247061,1724031038777,-368.50587714,0.0001089,2]
[335247062,1724031038787,-328.81321683,0.00010899,2]
[335247063,1724031038797,-200.73928877,0.00010973,2]
[335247064,1724031038806,-2676.3682859,0.00010993,2]
[335247065,1724031038817,-2735.78196085,0.00010993,2]
[335247066,1724031038827,-1008.46727889,0.00010999,2]
[335247067,1724031038836,-719.33,0.00010999,2]
[335247068,1724031038846,-1151.3,0.00010999,2]
[335247069,1724031038855,-719.33,0.00010999,2]
[335247070,1724031038864,-719.49,0.00010999,2]
[335247071,1724031038874,-1151.3,0.00010999,2]
[335247072,1724031038884,-1151.3,0.00010999,2]
[335247073,1724031038893,-1151.3,0.00010999,2]
[335247074,1724031038902,-1151.3,0.00010999,2]
[335247075,1724031038911,-206.90076027,0.00010999,2]
[335247076,1724031038923,-944.39923973,0.00010999,2]
[335247077,1724031038932,-1151.3,0.00010999,2]
[335247078,1724031038941,-1151.3,0.00010999,2]
[335247079,1724031038950,-1151.3,0.00010999,2]
[335247080,1724031038960,-1151.3,0.00010999,2]
[335247081,1724031038969,-136.73539683,0.00010999,2]
[335247089,1724031040878,-615.61225064,0.00010999,2]
[335247090,1724031040889,-399.15059709,0.00010999,2]
[335247091,1724031040899,-800.28,0.00010999,2]
[335247092,1724031040908,-800.28,0.00010999,2]
[335247093,1724031040918,-188.12843164,0.00010999,2]
[335247094,1724031040929,-612.15156836,0.00010999,2]
[335247095,1724031040939,-411.09843164,0.00010999,2]
[335247096,1724031040950,-389.18156836,0.00010999,2]
[335247097,1724031040960,-800.28,0.00010999,2]
[335247098,1724031040969,-800.28,0.00010999,2]
[335247099,1724031040978,-800.28,0.00010999,2]
[335247100,1724031040988,-800.28,0.00010999,2]
[335247101,1724031040997,-800.28,0.00010999,2]
[335247102,1724031041006,-800.28,0.00010999,2]
[335247103,1724031041015,-800.28,0.00010999,2]
[335247104,1724031041189,-800.28,0.00010999,2]
[335247105,1724031041199,-800.28,0.00010999,2]
[335247106,1724031041208,-800.28,0.00010999,2]
[335247107,1724031041217,-800.28,0.00010999,2]
[335247108,1724031041227,-800.28,0.00010999,2]
[335247109,1724031041236,-800.28,0.00010999,2]
[335247110,1724031041245,-800.28,0.00010999,2]
[335247111,1724031041255,-800.28,0.00010999,2]
[335247112,1724031041264,-800.28,0.00010999,2]
[335247113,1724031041275,-800.28,0.00010999,2]
[335247114,1724031041285,-800.28,0.00010999,2]
[335247115,1724031041294,-800.51,0.00010999,2]
[335247116,1724031041303,-500.0,0.00010999,2]
[335247117,1724031041313,-500.0,0.00010999,2]
[335247118,1724031041323,-500.0,0.00010999,2]
[335247119,1724031041332,-500.0,0.00010999,2]
[335247120,1724031041342,-500.0,0.00010999,2]
[335247121,1724031041351,-500.0,0.00010999,2]
[335247122,1724031041360,-500.0,0.00010999,2]
[335247123,1724031041370,-500.0,0.00010999,2]
[335247124,1724031041379,-500.0,0.00010999,2]
[335247125,1724031041388,-500.0,0.00010999,2]
[335247126,1724031041400,-500.0,0.00010999,2]
[335247127,1724031041410,-84.9707282,0.00010999,2]
[335247132,1724031041443,-656.66,9.943e-05,2]
[335247134,1724031041454,-500.0,9.943e-05,2]
[335247136,1724031041465,-1074.01716528,9.943e-05,2]
[335247138,1724031041477,-1694.85490272,9.943e-05,2]
[335247141,1724031041489,-1182.10999999,9.943e-05,2]
[335247247,1724031044663,-447.3484677,9.943e-05,2]
[335247248,1724031044675,-10706.78595017,9.943e-05,2]
[335247249,1724031044684,-229.45960913,0.00010998,2]
[335247250,1724031044694,-415.0292718,0.00010999,2]
[335247251,1724031044703,-500.0,0.00010999,2]
[335247252,1724031044712,-500.0,0.00010999,2]
[335247253,1724031044721,-500.0,0.00010999,2]
[335247254,1724031044731,-500.0,0.00010999,2]
[335247255,1724031044742,-500.0,0.00010999,2]
[335247256,1724031044753,-604.58841517,0.00010999,2]
[335247257,1724031044763,-500.0,0.00010999,2]
[335247258,1724031044771,-500.0,0.00010999,2]
[335247259,1724031044781,-500.0,0.00010999,2]
[335247260,1724031044791,-500.0,0.00010999,2]
[335247261,1724031044800,-500.0,0.00010999,2]
[335247262,1724031044810,-500.0,0.00010999,2]
[335247263,1724031044819,-639.57885824,0.00010999,2]
[335247264,1724031044828,-500.0,0.00010999,2]
[335247265,1724031044838,-500.0,0.00010999,2]
[335247266,1724031044847,-500.0,0.00010999,2]
[335247267,1724031044856,-500.0,0.00010999,2]
[335247268,1724031044866,-500.0,0.00010999,2]
[335247269,1724031044875,-500.95154994,0.00010999,2]
[335247270,1724031044884,-500.0,0.00010999,2]
[335247271,1724031044893,-500.0,0.00010999,2]
[335247272,1724031044903,-500.0,0.00010999,2]
[335247273,1724031044912,-500.0,0.00010999,2]
[335247274,1724031044921,-500.0,0.00010999,2]
[335247275,1724031044931,-500.0,0.00010999,2]
[335247276,1724031044941,-500.0,0.00010999,2]
[335247277,1724031044950,-500.0,0.00010999,2]
[335247278,1724031044959,-500.0,0.00010999,2]
[335247279,1724031044968,-500.0,0.00010999,2]
[335247280,1724031044977,-500.0,0.00010999,2]
[335247281,1724031044986,-500.0,0.00010999,2]
[335247282,1724031044995,-500.0,0.00010999,2]
[335247283,1724031045005,-500.0,0.00010999,2]
[335247284,1724031045013,-500.0,0.00010999,2]
[335247285,1724031045023,-500.0,0.00010999,2]
[335247286,1724031045032,-500.0,0.00010999,2]
[335247287,1724031045044,-500.0,0.00010999,2]
[335247288,1724031045054,-500.0,0.00010999,2]
[335247289,1724031045064,-500.0,0.00010999,2]
[335247290,1724031045073,-500.0,0.00010999,2]
[335247291,1724031045083,-500.0,0.00010999,2]
[335247292,1724031045093,-500.0,0.00010999,2]
[335247293,1724031045103,-500.0,0.00010999,2]
[335247294,1724031045113,-500.0,0.00010999,2]
[335247295,1724031045123,-500.0,0.00010999,2]
[335247296,1724031045132,-500.0,0.00010999,2]
[335247297,1724031045142,-500.0,0.00010999,2]
[335247298,1724031045151,-199.76718102,0.00010999,2]
[335247299,1724031045161,-500.0,0.00010999,2]
[335247300,1724031045170,-500.0,0.00010999,2]
[335247301,1724031045180,-388.84494527,0.00010999,2]
[335247302,1724031045192,-415.86181628,0.00010999,2]
[335247303,1724031045201,-420.0,0.00010999,2]
[335247304,1724031045211,-150.98079739,0.00010999,2]
[335247305,1724031045220,-520.78040834,0.00010999,2]
[335247306,1724031045231,-641.0,0.00010999,2]
[335247307,1724031045240,-17668.81889926,0.00011,2]
[335247308,1724031045252,-717.5668059,0.00011,2]
[335247309,1724031045264,-14278.23553382,0.00011,2]
[335247310,1724031045279,-20940.94710809,0.00011,2]
[335247311,1724031045293,-28937.342743,0.00011,2]
[335247315,1724031052699,-0.97799137,0.00010998,2]
[335247316,1724031052739,-165.97621254,0.00010998,2]
[335247317,1724031052748,-19044.21765701,0.00011,2]
[335247318,1724031052759,-1668.32821834,0.00011,2]
[335247320,1724031113950,341.19,8.219e-05,2]
[335247321,1724031136382,500.0,8.955e-05,2]
[335247323,1724031445664,477.85520667,9.717e-05,2]
[335247324,1724031588139,332.12,8.219e-05,2]
[335247326,1724031750223,502.71937871,9.284e-05,2]
[335247328,1724031772742,186.47,9.892e-05,2]
[335247333,1724031890035,15516.61828061,9.86e-05,2]
[335247336,1724031931540,169.2,9.827e-05,2]
[335247338,1724031963635,494.45262144,9.899e-05,2]
[335247339,1724031985740,16621.46,9.831e-05,2]
[335247340,1724032014212,155.12617027,9.899e-05,2]
[335247341,1724032016088,800.0,9.836e-05,2]
[335247342,1724032031759,3944.95940573,9.899e-05,2]
[335247343,1724032035901,519.34047881,8.633e-05,2]
[335247344,1724032039969,514.64,9.845e-05,2]
[335247347,1724032097391,323.1,8.219e-05,2]
[335247351,1724032188018,-3051.0,9.91e-05,7]
[335247354,1724032188054,-176.15632561,9.917e-05,2]
[335247355,1724032188090,-200.0,9.917e-05,2]
[335247356,1724032188126,-548.20763933,9.943e-05,2]
[335247357,1724032188175,-662.51068986,9.943e-05,2]
[335247362,1724032197487,-1002.3856565,9.943e-05,2]
[335247363,1724032197509,-150.0,9.945e-05,2]
[335247364,1724032197534,-196.64,9.959e-05,2]
[335247365,1724032197557,-1500.0,9.988e-05,2]
[335247366,1724032197578,-964.65302763,9.988e-05,2]
[335247367,1724032197600,-300.0,9.998e-05,2]
[335247368,1724032197621,-300.0,9.998e-05,2]
[335247369,1724032197643,-1501.32131587,9.999e-05,2]
[335247371,1724032224827,-629.65490579,9.962e-05,2]
[335247372,1724032224852,-7406.89776387,9.988e-05,2]
[335247373,1724032224875,-300.0,9.998e-05,2]
[335247374,1724032224899,-300.0,9.998e-05,2]
[335247375,1724032224925,-244.81873944,9.999e-05,2]
[335247376,1724032224949,-2390.28797276,9.999e-05,2]
[335247377,1724032224979,-230.34061814,0.0001,2]
[335247383,1724032231711,-202.78938186,0.0001,2]
[335247384,1724032231720,-445.33944435,0.0001,2]
[335247385,1724032231732,-104.66055565,0.0001,2]
[335247386,1724032231741,-1580.6460046,0.0001,2]
[335247387,1724032231755,-1028.0739954,0.0001,2]
[335247388,1724032231766,-589.1421671,0.0001,2]
[335247389,1724032231906,-64.93455784,0.0001,2]
[335247390,1724032231916,-500.0,0.0001,2]
[335247391,1724032231928,-579.9,0.0001,2]
[335247392,1724032231938,-138.56529579,0.00010009,2]
[335247393,1724032231950,-1977.7306095,0.00010009,2]
[335247394,1724032231960,-3877.81959156,0.00010009,2]
[335247395,1724032231969,-206.97079549,0.00010009,2]
[335247396,1724032231979,-155.28331931,0.00010009,2]
[335247397,1724032231990,-155.40635191,0.00010009,2]
[335247398,1724032232000,-434.09889747,0.00010009,2]
[335247399,1724032232010,-1874.50621754,0.00010009,2]
[335247400,1724032232025,-637.0341364,0.00010009,2]
[335247401,1724032232034,-155.20573838,0.00010009,2]
[335247402,1724032232046,-237.21122903,0.00010009,2]
[335247403,1724032232057,-297.68850569,0.00010009,2]
[335247404,1724032232066,-203.80348452,0.00010026,2]
[335247405,1724032232077,-155.0,0.00010026,2]
[335247406,1724032232086,-165.00816426,0.00010026,2]
[335247407,1724032232095,-155.18035115,0.00010026,2]
[335247408,1724032232105,-606.29385767,0.00010026,2]
[335247409,1724032232115,-219.36373773,0.00010026,2]
[335247410,1724032232126,-155.0,0.00010026,2]
[335247411,1724032232135,-380.99078234,0.00010026,2]
[335247412,1724032232148,-555.53849037,0.00010072,2]
[335247413,1724032237575,-601.78957294,0.00010026,2]
[335247415,1724032237585,-372.96150963,0.00010072,2]
[335247416,1724032237594,-150.99,0.00010072,2]
[335247417,1724032237603,-499.99,0.00010072,2]
[335247419,1724032237614,-155.25719629,0.00010097,2]
[335247421,1724032237624,-159.60847032,0.00010097,2]
[335247423,1724032237633,-328.2488375,0.00010097,2]
[335247425,1724032237643,-486.13623312,0.00010097,2]
[335247426,1724032237652,-155.18114417,0.00010097,2]
[335247428,1724032237662,-164.66394059,0.00010097,2]
[335247430,1724032237671,-522.7392996,0.000101,2]
[335247431,1724032237793,-909.54070859,0.000101,2]
[335247432,1724032237805,-1667.71999181,0.000101,2]
[335247433,1724032237814,-323.1,0.00010467,2]
[335247434,1724032237823,-150.0,0.0001047,2]
[335247435,1724032237832,-347.92812216,0.00010471,2]
[335247436,1724032237841,-155.0,0.00010471,2]
[335247437,1724032237851,-529.84527805,0.00010505,2]
[335247438,1724032237860,-193.062592,0.00010567,2]
[335247439,1724032237869,-186.569428,0.00010567,2]
[335247440,1724032237878,-155.0,0.00010713,2]
[335247441,1724032237888,-496.59600285,0.000108,2]
[335247442,1724032238007,-287.3677365,0.000108,2]
[335247444,1724032238016,-367.99016121,0.00010835,2]
[335247446,1724032238025,-53.72476441,0.00010842,2]
[335247448,1724032238035,-115.18921275,0.00010842,2]
[335247449,1724032238044,-150.0,0.00010843,2]
[335247451,1724032238053,-67.79283127,0.00010845,2]
[335247453,1724032240112,-155.16144136,0.00010026,2]
[335247454,1724032240122,-262.66163437,0.00010026,2]
[335247455,1724032240133,-129.57198754,0.00010026,2]
[335247456,1724032240142,-101.12114589,0.00010845,2]
[335247457,1724032240152,-168.91397716,0.00010851,2]
[335247458,1724032240162,-168.91397716,0.00010858,2]
[335247459,1724032240171,-8.46891225,0.00010861,2]
[335247460,1724032240313,-160.44506491,0.00010861,2]
[335247462,1724032240322,-168.91397716,0.0001087,2]
[335247463,1724032240331,-168.91397716,0.0001087,2]
[335247465,1724032240340,-168.91397716,0.00010872,2]
[335247467,1724032240352,-240.0739605,0.00010888,2]
[335247468,1724032240363,-834.60527473,0.00010888,2]
[335247470,1724032240372,-441.69018223,0.0001089,2]
[335247472,1724032240382,-222.2928,0.0001089,2]
[335247473,1724032240391,-1267.51674306,0.00010899,2]
[335247506,1724032243895,-528.85885242,0.00010888,2]
[335247507,1724032243907,-357.14684936,0.00010888,2]
[335247508,1724032243917,-390.70838995,0.00010899,2]
[335247509,1724032245698,-957.52,0.00010899,2]
[335247522,1724032246758,-1792.75082639,0.00010899,2]
[335247523,1724032246781,-172.814,0.000109,2]
[335247524,1724032246805,-167.78099439,0.000109,2]
[335247525,1724032246831,-508.0,0.000109,2]
[335247526,1724032246852,-1895.79,0.000109,2]
[335247527,1724032246874,-150.56267527,0.00010928,2]
[335247528,1724032246895,-150.0,0.00010959,2]
[335247529,1724032246915,-250.0,0.00010959,2]
[335247530,1724032246936,-211.79147823,0.00010979,2]
[335247531,1724032246958,-37.51002572,0.00010989,2]
[335247533,1724032599666,290.79,8.219e-05,2]
[335247534,1724032636879,261.16732453,8.922e-05,2]
[335247535,1724032894263,307.03,9.87e-05,2]
[335247536,1724032901357,1681.42,9.871e-05,2]
[335247537,1724032915465,250.0,9.851e-05,2]
[335247538,1724033009622,478.8,9.825e-05,2]
[335247539,1724033053734,200.0,9.814e-05,2]
[335247540,1724033069460,640.0,9.829e-05,2]
[335247541,1724033197020,283.88,8.219e-05,2]
[335247542,1724033201883,155.10237062,9.899e-05,2]
[335247543,1724033212648,155.10237062,9.899e-05,2]
[335247544,1724033214118,1902.24,9.807e-05,2]
[335247548,1724033296664,196.68,9.804e-05,2]
[335247549,1724033338048,-174.41,9.927e-05,2]
[335247551,1724033338084,-368.38433083,9.941e-05,2]
[335247553,1724033338120,-113.54364951,9.943e-05,2]
[335247558,1724033363477,-1577.5930483,9.943e-05,2]
[335247559,1724033363552,-3942.08002842,9.943e-05,2]
[335247602,1724033388499,-4052.47348995,9.943e-05,2]
[335247603,1724033388585,-2711.97465779,9.943e-05,2]
[335247604,1724033431837,-271.15585624,9.941e-05,2]
[335247605,1724033431847,-228.84414376,9.941e-05,2]
[335247606,1724033431859,-450.0,9.941e-05,2]
[335247607,1724033432046,-44.82913318,9.941e-05,2]
[335247608,1724033432055,-411.50514687,0.00010009,2]
[335247615,1724033438250,-1065.9625113,0.00010009,2]
[335247617,1724033438259,-2380.98383605,0.00010009,2]
[335247619,1724033438268,-713.57175265,0.00010009,2]
[335247815,1724033440143,-646.2912233,0.00010009,2]
[335247817,1724033440152,-231.06895042,0.00010026,2]
[335247819,1724033440161,-45.72426456,0.00010026,2]
[335247821,1724033440172,-1222.6264191,0.00010026,2]
[335247823,1724033440181,-130.11686311,0.00010062,2]
[335247825,1724033440192,-229.88313689,0.00010062,2]
[335247827,1724033440201,-40.00139496,0.00010097,2]
[335247842,1724033440330,-589.05769737,0.00010097,2]
[335247844,1724033440339,-258.90517254,0.00010097,2]
[335247846,1724033440347,-273.37441322,0.00010097,2]
[335247848,1724033440356,-4241.03954746,0.000101,3]
[335247850,1724033440367,-1106.96045254,0.000101,3]
[335247852,1724033440376,-6148.97133689,0.000101,5]
[335247870,1724033440537,-1551.11289059,0.000101,5]
[335247872,1724033440549,-2178.54851912,0.000101,5]
[335247874,1724033440560,-586.55,0.000101,5]
[335247877,1724033440572,-318.32600882,0.000101,5]
[335248101,1724033442903,-718.49124458,0.000101,5]
[335248103,1724033442912,-846.8,0.00010441,2]